[Event "Danish-ch Masters 2022"]
[Site "Svendborg"]
[Date "2022.04.10"]
[Round "2.5"]
[White "Hoi, Carsten"]
[Black "Borge, Nikolaj"]
[Result "1-0"]
[ECO "D04"]
[WhiteElo "2343"]
[BlackElo "2392"]
[Annotator "TA"]
[PlyCount "95"]
[EventDate "2022.04.10"]
[EventType "tourn"]
[EventCountry "DEN"]
[SourceTitle "playchess.com"]
[Source "ChessBase"]
[SourceQuality "1"]
[TimeControl "40/5400+30:1800+30"]

{[%evp 15,95,0,35,1,6,0,21,23,23,18,27,0,0,9,0,26,0,0,60,54,110,94,88,18,85,60,120,104,113,115,130,125,118,113,231,109,159,55,72,58,70,76,85,85,75,38,124,115,128,20,191,84,618,612,599,534,562,514,713,682,682,677,579,494,518,499,612,589,1218,1177,5069,4133,1602,1418,29979,29981,29977,29977,29990,29991,29994,29995]} 1. d4 {[%emt 0:01:05] Petronijevic,Zoran} d5 {[%emt 0:00:05]} 2. Nf3 {[%emt 0:00:09]} Nf6 {[%emt 0:00:41]} 3. e3 {[%emt 0:00:28]} c5 {[%emt 0:04:41]} 4. b3 {[%emt 0:04:02]} Nc6 {[%emt 0:02:29]} 5. Bb2 {[%emt 0:02:09]} e6 {[%emt 0:03:37]} 6. Bd3 {[%emt 0:04:03]} Qc7 {[%emt 0:09:12]} 7. a3 {[%emt 0:05:16]} Bd6 {[%emt 0:03:56]} 8. O-O {[%emt 0:07:05]} O-O {[%emt 0:20:03]} 9. c4 {[%emt 0:18:27] D05: Colle System with ...e6.} cxd4 {[%emt 0:04:57]} 10. exd4 {[%emt 0:02:51]} b6 {[%emt 0:01:14] Prevents c5.} (10... e5 $5 {[%cal Re5e4]} 11. c5 e4 $1 12. cxd6 Qxd6 $11) 11. Re1 {[%emt 0:10:29] The position is equal.} Bb7 {[%emt 0:05:01]} 12. Nc3 {[%emt 0:01:56]} a6 {[%emt 0:08:18][%cal Oc6d4] Against Nb5} 13. Na4 {[%emt 0:05:19] [#]} dxc4 $146 {[%emt 0:10:33]} ({Predecessor:} 13... Bf4 14. Ne5 dxc4 15. bxc4 Nxe5 16. dxe5 Qc6 17. Bf1 Rfd8 18. Qb3 Ng4 19. h3 Rd3 20. Qxb6 Rxh3 21. Bd4 Bh2+ 22. Kh1 Bxe5+ {0-1 (22) Gerasimov-Smyslov,V Moscow 1935 EXT 2010 [Petronijevic,Zoran]}) 14. bxc4 {[%emt 0:00:27][%cal Od4d5]} b5 {[%emt 0:01:46]} 15. cxb5 {[%emt 0:02:43]} axb5 {[%emt 0:00:27]} 16. Nc5 {[%emt 0:01:19]} Na7 {[%emt 0:06:22]} (16... Na5 $11) 17. Rc1 $14 {[%emt 0:04:28][%cal Oc5e6]} Qe7 {[%emt 0:02:25]} (17... Rfe8 $14) 18. Nxb7 $16 {[%emt 0:06:13]} Qxb7 {[%emt 0:00:04]} 19. Ng5 {[%emt 0:00:41]} (19. d5 $1 $16 {[%cal Rd5e6]} Qxd5 20. Bxf6 gxf6 21. Re4 (21. Be4 Qxd1 22. Rcxd1 Rad8 $17)) 19... Bf4 {[%emt 0:05:10]} (19... Rac8 $11) 20. Rc5 {[%emt 0:03:57][%cal Od4d5]} Rad8 {[%emt 0:02:01] Inhibits d5.} (20... Bxg5 $14 21. Rxg5 Nd5) 21. Ne4 $1 {[%emt 0:04:29]} Nd5 {[%emt 0:00:52]} 22. Qf3 $1 {[%emt 0:00:41][%cal Oc5d5] Rxd5! is the strong threat.} Qb8 {[%emt 0:01:44]} 23. g3 {[%emt 0:00:53]} Bh6 {[%emt 0:01:01]} 24. h4 {[%emt 0:01:18][%cal Bh2h4,Bh4h5][%mdl 32]} Rc8 {[%emt 0:02:24] [#]} (24... Qb6 $16 {was worth a try.}) 25. Ng5 {[%emt 0:03:38]} (25. Rxd5 $1 $18 {[%mdl 512] is the precise move to win.} exd5 26. Nf6+ $1 {[%mdl 512]} Kh8 27. Nd7 (27. Nxd5 Rce8 $16)) 25... g6 {[%emt 0:00:31]} (25... Bxg5 $142 26. hxg5 b4) 26. Rec1 {[%emt 0:01:47] 0x0.0022d042ee6cdp-1022s more active pieces. The black rooks are badly placed.} (26. Be4 $16) 26... b4 {[%emt 0:01:21]} 27. a4 {[%emt 0:00:13]} Bg7 {[%emt 0:00:26][%cal Od5c3]} 28. h5 {[%emt 0:00:18]} Rxc5 {[%emt 0:00:41]} 29. Rxc5 {[%emt 0:00:14]} Qd8 {[%emt 0:00:22]} 30. Ne4 {[%emt 0:02:05]} (30. Qg4 $5 {[%cal Rh5g6]} Qe7 31. hxg6 hxg6 32. Bc4 $14 (32. Qh4 Rd8 $14)) 30... f5 {[%emt 0:00:20]} (30... Nc8 $1 $14) 31. Nd2 {[%emt 0:01:03]} Qg5 {[%emt 0:00:22]} 32. Nb3 {[%emt 0:00:30]} (32. Qe2 $16 Kh8 33. hxg6) 32... gxh5 $2 {[%emt 0:00:24] [#]} (32... Qxh5 $11 {and Black has nothing to worry.} 33. Qxh5 gxh5) 33. Bc4 {[%emt 0:00:28]} (33. Ra5 $1 $18 Qe7 34. Nc5) 33... Nc3 $2 {[%emt 0:01:24][%mdl 8192]} (33... Qg4 $16 34. Bxd5 exd5 35. Qxg4 (35. Qxd5+ Kh8 $11) 35... fxg4) 34. Bxe6+ $18 {[%emt 0:01:09] This bishop pair is nice.} Kh8 {[%emt 0:00:01]} 35. Rxf5 {[%emt 0:01:03]} Rxf5 {[%emt 0:00:55]} 36. Bxf5 {[%emt 0:00:17] Black must now prevent Qa8+.} ({Less strong is} 36. Qxf5 Qxf5 37. Bxf5 Nxa4 $14) 36... Nc6 {[%emt 0:01:59]} 37. Bxc3 {[%emt 0:01:43]} bxc3 {[%emt 0:00:13]} 38. Qxc6 {[%emt 0:02:20] White wants to mate with Qe8+.} Qxf5 {[%emt 0:00:03]} 39. Qxc3 {[%emt 0:00:46] Hoping for a5.} h4 {[%emt 0:00:09]} 40. gxh4 {[%emt 0:01:26]} Bf6 {[%emt 0:01:32]} 41. Qg3 {[%emt 0:01:40]} Qh5 {[%emt 0:03:06]} 42. a5 {[%emt 0:02:05] Threatens to win with a6.} Qd1+ {[%emt 0:02:25]} 43. Kg2 {[%emt 0:00:21] White threatens a6 and mate.} Qe2 {[%emt 0:02:44]} 44. Qf3 {[%emt 0:02:28]} Qe7 {[%emt 0:00:14]} 45. a6 {[%emt 0:01:35] White mates.} Qf7 {[%emt 0:04:30]} 46. a7 {[%emt 0:01:47]} h5 {[%emt 0:00:05]} 47. a8=Q+ {[%emt 0:01:02]} Bd8 {[%emt 0:00:05]} 48. Qxd8+ {[%emt 0:00:19] Weighted Error Value: White=0.26 (precise) /Black=0.78} 1-0

[Event "Danish-ch Masters 2022"]
[Site "Svendborg"]
[Date "2022.04.11"]
[Round "3.1"]
[White "Thybo, Jesper Sondergaard"]
[Black "Bjerre, Jonas Buhl"]
[Result "1-0"]
[ECO "A33"]
[WhiteElo "2592"]
[BlackElo "2586"]
[Annotator "TA"]
[PlyCount "79"]
[EventDate "2022.04.10"]
[EventType "tourn"]
[EventCountry "DEN"]
[SourceTitle "playchess.com"]
[Source "ChessBase"]
[SourceQuality "1"]
[TimeControl "40/5400+30:1800+30"]

{[%evp 12,79,10,6,16,9,10,22,27,27,27,27,27,27,27,27,27,32,30,30,54,54,57,56,56,34,44,-6,0,0,4,0,9,0,21,0,0,0,46,0,32,33,24,14,231,179,195,225,365,376,368,370,314,173,756,728,1220,1208,1151,1141,1173,1146,2193,2227,29971,29972,29960,29961,3439,2815]} 1. Nf3 {[%emt 0:00:10]} c5 {[%emt 0:00:54]} 2. c4 {[%emt 0:00:26]} Nc6 {[%emt 0:00:05]} 3. d4 {[%emt 0:00:23]} cxd4 {[%emt 0:00:05]} 4. Nxd4 {[%emt 0:00:06]} Nf6 {[%emt 0:00:28]} 5. Nc3 {[%emt 0:00:26]} e6 {[%emt 0:00:08]} 6. Nxc6 {[%emt 0:00:25]} bxc6 {[%emt 0:02:49]} 7. e4 {[%emt 0:00:21]} e5 {[%emt 0:04:39] B44: Sicilian: Taimanov: 5 Nb5.} 8. Qd3 $5 {[%emt 0:02:32][%mdl 4] A promising side line.} Bc5 {[%emt 0:04:31]} 9. Be3 {[%emt 0:03:43] [#]} Qb6 $146 {[%emt 0:04:43] The position is equal.} ({Predecessor:} 9... Qe7 10. Be2 O-O 11. O-O Bxe3 12. Qxe3 d6 13. Rfd1 Be6 14. b4 Rfd8 15. Rab1 h6 {0-1 (41) Haug,J (2252)-Hardicsay,P (2254) Heviz 2015}) 10. Bxc5 {[%emt 0:03:22]} Qxc5 {[%emt 0:00:04]} 11. Be2 {[%emt 0:02:13]} O-O {[%emt 0:03:11]} 12. O-O {[%emt 0:03:02]} Rd8 {[%emt 0:01:56]} 13. Rfd1 {[%emt 0:03:58]} Rb8 {[%emt 0:04:18]} 14. a3 {[%emt 0:10:52]} Qe7 {[%emt 0:08:18]} (14... Rxb2 $2 15. Na4 Qd4 16. Qxd4 exd4 17. Nxb2 $18) 15. b4 {[%emt 0:02:45]} a5 {[%emt 0:02:38]} 16. b5 $1 {[%emt 0:04:32]} cxb5 {[%emt 0:03:48]} 17. cxb5 {[%emt 0:02:43]} Bb7 {[%emt 0:00:15]} 18. a4 {[%emt 0:05:54]} Qb4 {[%emt 0:05:48][%cal Rb7e4]} 19. Nd5 {[%emt 0:12:50]} ({White should play} 19. Rac1 $14) 19... Bxd5 $11 {[%emt 0:04:24]} 20. exd5 {[%emt 0:00:09]} Rdc8 {[%emt 0:01:33]} 21. d6 {[%emt 0:05:29]} Rc3 {[%emt 0:07:52]} (21... Ne4 $5 {[%cal Re4c3]}) 22. Qf5 {[%emt 0:02:14]} e4 {[%emt 0:02:48]} 23. Qf4 {[%emt 0:13:59]} Rbc8 {[%emt 0:02:55]} 24. Bf1 {[%emt 0:06:48]} h5 {[%emt 0:09:21]} (24... R3c5 $11 {feels stronger.}) 25. h3 {[%emt 0:00:50]} (25. Qd2 $1 $14 {should be considered.}) 25... Qc5 {[%emt 0:01:27]} 26. Rab1 {[%emt 0:02:58] Black must now prevent b6.} Qb6 {[%emt 0:04:04]} 27. Re1 {[%emt 0:03:36]} Qd4 $2 {[%emt 0:01:26] This move loses the game for Black.} (27... Rc2 $11 {and Black has nothing to worry.}) 28. b6 $18 {[%emt 0:02:12][%cal Bb5b6,Bb6b7][%mdl 32] Threatens to win with Red1.} Rb8 {[%emt 0:02:26]} 29. b7 {[%emt 0:00:52]} Rc6 {[%emt 0:06:36]} (29... Qa7 $142) 30. Rec1 {[%emt 0:02:04]} Rxc1 {[%emt 0:04:51]} 31. Qxc1 {[%emt 0:00:20] Strongly threatening Qc8+.} Qxd6 {[%emt 0:00:04]} 32. Qc3 {[%emt 0:00:49]} (32. Qc8+ $142 Kh7 33. Rb5) 32... Qc6 $2 {[%emt 0:02:26]} (32... e3 33. fxe3 Ne4 34. Qc8+ (34. Qxa5 Qg3 $14) 34... Kh7) 33. Qxa5 {[%emt 0:00:43]} d5 {[%emt 0:01:28]} 34. Qa7 {[%emt 0:00:47]} Nd7 {[%emt 0:00:20]} 35. a5 {[%emt 0:00:31][%cal Ba4a5,Ba5a6,Ba6a7][%mdl 32]} Qc2 {[%emt 0:03:44]} 36. Rb5 {[%emt 0:00:27]} Qd2 {[%emt 0:01:33]} 37. a6 {[%emt 0:00:30]} d4 {[%emt 0:00:08] [#]} 38. Qxb8+ $3 {[%emt 0:01:03][%mdl 512]} Nxb8 {[%emt 0:00:04]} 39. a7 {[%emt 0:00:03]} Qf4 {[%emt 0:00:09] [#]} 40. Rf5 $3 {[%emt 0:01:13][%mdl 576] Promotion.  Weighted Error Value: White=0.12 (very precise) /Black=0.53} 1-0

[Event "Danish-ch Masters 2022"]
[Site "Svendborg"]
[Date "2022.04.11"]
[Round "3.2"]
[White "Olsen, Filip Boe"]
[Black "Haubro, Martin"]
[Result "0-1"]
[ECO "E46"]
[WhiteElo "2386"]
[BlackElo "2399"]
[Annotator "TA"]
[PlyCount "106"]
[EventDate "2022.04.10"]
[EventType "tourn"]
[EventCountry "DEN"]
[SourceTitle "playchess.com"]
[Source "ChessBase"]
[SourceQuality "1"]
[TimeControl "40/5400+30:1800+30"]

{[%evp 11,106,0,0,-3,11,12,13,0,10,5,20,25,26,20,61,32,43,27,46,47,127,116,97,81,102,52,61,-89,-79,-71,-75,-30,0,0,0,10,15,-39,-35,-37,-37,-43,-38,-41,-53,-68,-59,-57,-47,-35,-41,-62,-47,-51,-25,-26,-18,-56,-46,-129,-133,-120,-120,-140,-87,-91,-83,-83,-83,-83,-90,-165,-150,-158,-169,-162,-160,-330,-324,-320,-315,-292,-264,-393,-318,-568,-466,-1047,-1022,-1032,-1041,-895,-895,-632,-601,-468,-354]} 1. d4 {[%emt 0:00:03]} Nf6 {[%emt 0:00:38]} 2. c4 {[%emt 0:00:09]} e6 {[%emt 0:00:04]} 3. Nc3 {[%emt 0:00:12]} Bb4 {[%emt 0:00:06]} 4. e3 {[%emt 0:00:10]} O-O {[%emt 0:00:08]} 5. Bd2 {[%emt 0:00:06]} d5 {[%emt 0:07:45]} 6. Nf3 {[%emt 0:00:14]} b6 {[%emt 0:01:48]} 7. Rc1 {[%emt 0:01:12] E51: Nimzo-Indian: Rubinstein: 4...0-0 5 Nf3 d5.} a6 {[%emt 0:07:23]} 8. cxd5 {[%emt 0:06:14]} exd5 {[%emt 0:00:37]} 9. Bd3 {[%emt 0:00:13] The position is equal.} Bb7 {[%emt 0:00:26]} 10. Ne5 {[%emt 0:01:09]} Bd6 {[%emt 0:11:09]} 11. O-O {[%emt 0:02:00]} c5 {[%emt 0:25:30]} 12. f4 {[%emt 0:13:02]} Ne4 {[%emt 0:05:40]} 13. Be1 {[%emt 0:06:08]} Nd7 {[%emt 0:11:12] [#]} 14. Bb1 $146 {[%emt 0:27:25]} ({Predecessor:} 14. Nxe4 dxe4 15. Bc4 cxd4 16. exd4 Rc8 17. Qh5 Qe8 18. Rc3 b5 19. Qxh7+ Kxh7 20. Rh3+ Kg8 21. Ng6 {1-0 (21) Dragun,K (2561)-Schmakel,S (2435) chess24.com INT 2020}) 14... Ndf6 {[%emt 0:05:32]} 15. Bh4 {[%emt 0:02:43]} Re8 {[%emt 0:03:48]} ({Black should play} 15... cxd4 $14 16. Nxe4 dxe4) 16. Nxe4 {[%emt 0:06:02]} dxe4 {[%emt 0:00:28]} 17. Qb3 {[%emt 0:06:01]} Re7 {[%emt 0:07:30]} 18. Nc4 {[%emt 0:10:44]} (18. Rcd1 $16 Bd5 19. Qc2) 18... cxd4 $14 {[%emt 0:01:14]} 19. Qxb6 {[%emt 0:02:16]} ({Reject} 19. Nxb6 Rb8 20. Bxf6 (20. exd4 Bc7 $11) 20... gxf6 21. exd4 e3 $15) (19. Bxf6 $14 {stays ahead.} gxf6 20. exd4 (20. Nxb6 Rb8 $15)) 19... Qxb6 $17 {[%emt 0:00:07]} 20. Nxb6 {[%emt 0:00:06]} Rd8 {[%emt 0:00:15]} 21. exd4 {[%emt 0:00:38]} Bc7 {[%emt 0:02:09]} (21... e3 {feels hotter.} 22. Bd3 Bb8 23. Be2 Rxd4 24. Nc4 Bxf4 25. Bxf6 gxf6 26. g3 Rd2) 22. Nc4 {[%emt 0:03:57]} Rxd4 {[%emt 0:00:06]} 23. Bf2 {[%emt 0:00:22]} Rd5 {[%emt 0:00:41]} 24. Ne5 {[%emt 0:02:01]} (24. g3 $11) 24... Bxe5 {[%emt 0:01:59]} 25. fxe5 {[%emt 0:00:02]} Rdxe5 {[%emt 0:00:16]} 26. Bd4 {[%emt 0:02:15]} Rd5 {[%emt 0:01:55]} 27. Be3 {[%emt 0:01:38]} h6 {[%emt 0:00:48]} 28. b4 {[%emt 0:00:33]} Ng4 {[%emt 0:03:04]} 29. Bc5 {[%emt 0:00:09]} Re8 $36 {[%emt 0:00:04][%mdl 2048] White must now prevent ...e3. Black is more active.} 30. h3 {[%emt 0:01:26]} Nf6 {[%emt 0:00:20]} 31. Be3 {[%emt 0:01:12]} Rd7 {[%emt 0:00:51]} 32. Bc2 {[%emt 0:00:55]} Bc6 {[%emt 0:00:21] Against Ba4} 33. Bb3 {[%emt 0:01:31] A strong pair of Bishops.} Bb5 {[%emt 0:00:09]} 34. Rfe1 {[%emt 0:00:43]} Nd5 {[%emt 0:00:43]} 35. Bc5 {[%emt 0:00:45]} (35. Bd2 $15) 35... Nf4 {[%emt 0:00:21]} 36. Rc2 {[%emt 0:01:54]} Nd3 {[%emt 0:01:00] &Nero is more active.} 37. Re3 {[%emt 0:00:13]} Nxc5 {[%emt 0:00:54]} ({Better is} 37... Kh7 $1 38. g4 g6) 38. Rxc5 {[%emt 0:00:28]} g6 {[%emt 0:01:06]} 39. a4 {[%emt 0:01:26]} Bd3 {[%emt 0:00:05]} 40. Bd5 {[%emt 0:00:52]} Rd6 {[%emt 0:01:07]} 41. b5 {[%emt 0:03:01]} (41. Bc6 $17 Re7 42. Re1) 41... axb5 {[%emt 0:03:49]} 42. axb5 {[%emt 0:02:14] [#]} Kg7 $1 {[%emt 0:01:16] aiming for ...Re5.} 43. Bc6 {[%emt 0:01:21]} Rc8 {[%emt 0:06:37]} 44. g4 $2 {[%emt 0:02:26] [#] Prevents f5.} (44. Re1 $17 {was worth a try.}) 44... Bxb5 $1 $19 {[%emt 0:01:34][%mdl 512]} 45. Rxb5 {[%emt 0:00:23]} Rcxc6 {[%emt 0:00:06]} ({And not} 45... Rdxc6 46. Rxe4 Rc1+ 47. Kf2 $19) 46. Rxe4 {[%emt 0:00:28][%mdl 4096] Endgame KRR-KRR} Rd3 {[%emt 0:00:43] Strongly threatening ...Rc2.} 47. h4 {[%emt 0:00:50]} (47. Rf4 $142) 47... Rc2 {[%emt 0:00:14] ( -> ...Rd1+)} 48. Rb1 {[%emt 0:01:32] [#] Prevents Rd1+.} (48. Rf4) 48... Rg3+ $1 {[%emt 0:00:44] Black is clearly winning.} 49. Kh1 {[%emt 0:00:25]} (49. Kf1 $142 Rh3 50. Kg1) 49... Rh3+ {[%emt 0:00:07]} 50. Kg1 {[%emt 0:00:05]} Rxh4 {[%emt 0:00:07]} 51. Rbe1 {[%emt 0:01:37]} h5 {[%emt 0:00:19]} 52. gxh5 {[%emt 0:00:27]} Rxh5 {[%emt 0:00:05] Hoping for ...Rhh2.} 53. Rf4 {[%emt 0:00:43]} Ra5 {[%emt 0:00:43] Weighted Error Value: White=0.43/Black=0.08 (flawless)} 0-1

[Event "Danish-ch Masters 2022"]
[Site "Svendborg"]
[Date "2022.04.11"]
[Round "3.3"]
[White "Borge, Nikolaj"]
[Black "Ochsner, Bjorn Moller"]
[Result "1-0"]
[ECO "B89"]
[WhiteElo "2392"]
[BlackElo "2496"]
[Annotator "TA"]
[PlyCount "75"]
[EventDate "2022.04.10"]
[EventType "tourn"]
[EventCountry "DEN"]
[SourceTitle "playchess.com"]
[Source "ChessBase"]
[SourceQuality "1"]
[TimeControl "40/5400+30:1800+30"]

{[%evp 22,75,22,25,17,9,151,146,322,314,455,256,224,215,332,303,357,350,358,352,345,348,356,356,340,347,364,370,542,523,650,643,728,530,471,531,511,508,572,586,552,570,627,602,555,571,620,615,578,564,712,684,831,848,29977,29978]} 1. e4 {[%emt 0:01:13]} c5 {[%emt 0:00:25]} 2. Nf3 {[%emt 0:00:07]} d6 {[%emt 0:00:07]} 3. d4 {[%emt 0:00:09]} cxd4 {[%emt 0:00:07]} 4. Nxd4 {[%emt 0:00:03]} Nf6 {[%emt 0:00:07]} 5. Nc3 {[%emt 0:00:06]} Nc6 6. Bc4 {[%emt 0:01:19][%cal Bf1c4,Bc4b3,Bb3d5][%mdl 32]} e6 {[%emt 0:02:10]} 7. Be3 {[%emt 0:00:31]} Be7 {[%emt 0:00:50]} 8. Qe2 {[%emt 0:08:30]} a6 {[%emt 0:01:45]} 9. O-O-O {[%emt 0:00:24]} Qc7 {[%emt 0:00:42]} 10. Bb3 {[%emt 0:00:34]} O-O {[%emt 0:00:21]} 11. Rhg1 {[%emt 0:05:09]} b5 {[%emt 0:00:57]} 12. g4 $1 {[%emt 0:03:02][%cal Bg2g4,Bg4g5][%mdl 32]} Na5 {[%emt 0:02:32] White must now prevent ...b4. is the legacy move (12...b4). B89: Sicilian: Velimirovic Attack.} 13. g5 {[%emt 0:02:00]} Nd7 {[%emt 0:00:22]} (13... Nxb3+ $11 14. Nxb3 Nd7) 14. Bd5 $1 $16 {[%emt 0:20:24] And now g6 would win. &Bianco is much more active. The black rooks are badly placed.} b4 $2 {[%emt 0:44:44]} (14... Nb6 $16 {might work better.}) 15. Nxe6 $1 $18 {[%emt 0:19:32] [#]} ({Inferior is} 15. Bxa8 bxc3 16. b4 Qb8 $1 $15) 15... Qb8 $146 {[%emt 0:02:50] [#]} (15... fxe6 $142 16. Bxe6+ Kh8) ({Predecessor:} 15... fxe6 16. Bxe6+ Kh8 17. Nd5 Qd8 18. g6 Ne5 19. Qh5 Nxg6 20. Rxg6 Qe8 21. Rdg1 Bxe6 {1-0 (28) Ligterink,G-Dieks,R Wijk aan Zee 1975}) 16. Nxf8 {[%emt 0:09:41]} (16. Bd4 $142 $1) 16... bxc3 {[%emt 0:00:40][%csl Gc3][%cal Rb8b2]} 17. b4 {[%emt 0:03:02][%cal Oe2h5] White threatens Qh5! and mate.} (17. bxc3 Bxf8 18. Bxa8 Qxa8 $14) 17... Nxf8 {[%emt 0:24:09]} (17... Bxf8 {was called for.} 18. Bxa8 Qxa8 19. bxa5 Qb7) 18. Bxa8 {[%emt 0:02:37]} Qxa8 {[%emt 0:08:17]} 19. bxa5 {[%emt 0:00:42]} Qxe4 {[%emt 0:00:35]} 20. Rd4 {[%emt 0:00:56]} Qb7 {[%emt 0:01:34]} 21. Qd3 {[%emt 0:05:25]} Qb2+ {[%emt 0:00:55]} 22. Kd1 {[%emt 0:00:04]} d5 {[%emt 0:02:15]} 23. Bc1 {[%emt 0:01:10]} ({Less strong is} 23. Rxd5 Qb1+ 24. Bc1 Be6 $18) 23... Qa1 {[%emt 0:00:22]} 24. Rxd5 {[%emt 0:04:52]} ({Not} 24. Ke2 Bd7 25. Rxd5 Qxa2 26. Rxd7 Qe6+ 27. Kf3 Nxd7 $18) 24... Be6 {[%emt 0:01:58]} (24... g6 $142 25. Ke2 Qxa2) 25. Rd4 {[%emt 0:03:35]} Ba3 {[%emt 0:00:39] [#]} 26. Ke2 $1 {[%emt 0:00:24][%cal Oc1a3]} Bc5 {[%emt 0:01:14] [#]} (26... Be7 27. Rd1) 27. Rc4 $1 {[%emt 0:02:05]} Ba3 {[%emt 0:01:53] [#]} 28. Bxa3 $1 {[%emt 0:01:42]} Qxg1 {[%emt 0:00:10]} 29. Rxc3 {[%emt 0:00:52]} Bg4+ {[%emt 0:00:46]} 30. f3 {[%emt 0:00:22]} Qxh2+ {[%emt 0:01:06]} 31. Kd1 {[%emt 0:00:11][%cal Be2d1,Bd1d2,Bd2c1,Bc1b2][%mdl 32]} Qg1+ {[%emt 0:00:22]} 32. Kd2 {[%emt 0:00:08]} Be6 {[%emt 0:00:38]} 33. Qd8 {[%emt 0:00:58][%csl Ga3][%cal Rd8f8]} Qf2+ {[%emt 0:00:47]} 34. Kc1 {[%emt 0:00:50][%csl Ga3][%cal Rd8f8]} Qf1+ {[%emt 0:00:02]} 35. Qd1 {[%emt 0:01:30]} Qb5 {[%emt 0:00:14]} 36. Qd6 {[%emt 0:00:59][%csl Ga3][%cal Rd6f8]} Qf1+ {[%emt 0:01:13]} 37. Kb2 {[%emt 0:00:15][%csl Ga3][%cal Rd6f8]} Qb5+ {[%emt 0:00:39] [#]} 38. Rb3 $1 {[%emt 0:00:14] Black got outplayed after the opening.  Weighted Error Value: White=0.13 (very precise) /Black=0.66} 1-0

[Event "Danish-ch Masters 2022"]
[Site "Svendborg"]
[Date "2022.04.11"]
[Round "3.4"]
[White "Sylvan, Jacob"]
[Black "Hoi, Carsten"]
[Result "1/2-1/2"]
[ECO "C11"]
[WhiteElo "2312"]
[BlackElo "2343"]
[Annotator "RC"]
[PlyCount "81"]
[EventDate "2022.04.10"]
[EventType "tourn"]
[EventCountry "DEN"]
[SourceTitle "playchess.com"]
[Source "ChessBase"]
[SourceQuality "1"]
[TimeControl "40/5400+30:1800+30"]

1. e4 {[%emt 0:00:06]} e6 {[%emt 0:01:21]} 2. d4 {[%emt 0:00:12]} d5 {[%emt 0:00:09]} 3. Nc3 {[%emt 0:00:05]} Nf6 {[%emt 0:00:10]} 4. e5 {[%emt 0:02:13]} Nfd7 {[%emt 0:00:18]} 5. f4 {[%emt 0:00:46]} c5 {[%emt 0:00:27]} 6. Nf3 {[%emt 0:00:15]} Nc6 {[%emt 0:00:36]} 7. Be3 {[%emt 0:00:13]} a6 {[%emt 0:02:49]} 8. Qd2 {[%emt 0:07:38]} b5 {[%emt 0:02:45]} 9. dxc5 {[%emt 0:04:10]} Bxc5 {[%emt 0:01:59]} 10. Bd3 {[%emt 0:08:21]} d4 {[%emt 0:27:38]} 11. Nxd4 {[%emt 0:01:57]} Nxd4 {[%emt 0:16:01]} 12. Ne4 {[%emt 0:05:10]} Bb7 {[%emt 0:09:25]} 13. O-O-O {[%emt 0:32:46]} O-O {[%emt 0:08:27]} 14. Nxc5 {[%emt 0:02:50]} Nxc5 {[%emt 0:00:06]} 15. Bxd4 {[%emt 0:00:08]} Nxd3+ {[%emt 0:00:09]} 16. Qxd3 {[%emt 0:00:26]} Qd5 {[%emt 0:00:39]} 17. Kb1 {[%emt 0:02:32]} Qxg2 {[%emt 0:00:58]} 18. Rhg1 {[%emt 0:00:24]} Qf3 {[%emt 0:01:50]} 19. f5 {[%emt 0:07:12]} Qxd3 {[%emt 0:03:32]} 20. cxd3 {[%emt 0:03:46]} Rfd8 {[%emt 0:02:34]} 21. Bc3 {[%emt 0:00:38]} a5 {[%emt 0:01:29]} 22. f6 {[%emt 0:04:47]} g6 {[%emt 0:00:10]} 23. b4 {[%emt 0:01:23]} a4 {[%emt 0:03:21]} 24. a3 {[%emt 0:01:04]} Kf8 {[%emt 0:01:10]} 25. Rd2 {[%emt 0:02:16]} Ke8 {[%emt 0:01:39]} 26. Bb2 {[%emt 0:02:53]} Be4 {[%emt 0:01:24]} 27. Rgd1 {[%emt 0:01:57]} Bf5 {[%emt 0:00:22]} 28. Ka1 {[%emt 0:00:14]} Rac8 {[%emt 0:00:30]} 29. Rc1 {[%emt 0:01:38]} Rxc1+ {[%emt 0:05:11]} 30. Bxc1 {[%emt 0:00:05]} Rc8 {[%emt 0:00:12]} 31. Bb2 {[%emt 0:00:52]} g5 {[%emt 0:00:45]} 32. Bd4 {[%emt 0:01:18]} Rd8 {[%emt 0:02:26]} 33. Be3 {[%emt 0:00:26]} g4 {[%emt 0:00:15]} 34. d4 {[%emt 0:01:21]} Be4 {[%emt 0:01:09]} 35. Kb2 {[%emt 0:01:40]} Kd7 {[%emt 0:02:26]} 36. Rd1 {[%emt 0:02:02]} Rc8 {[%emt 0:00:31]} 37. Rd2 {[%emt 0:01:08]} h5 {[%emt 0:00:54]} 38. Bf2 {[%emt 0:01:12]} Kc6 {[%emt 0:01:06]} 39. d5+ {[%emt 0:00:14]} Bxd5 {[%emt 0:01:51]} 40. Rc2+ {[%emt 0:00:47]} Bc4 {[%emt 0:00:46]} 41. Rd2 {[%emt 0:30:13]} 1/2-1/2